Workbook

Sheet Лист1
D1: Таблица 1 к Приложению 3
B3: Информация об изменениях объемов финансирования и целевых показателей муниципальной программы города Усолье-Сибирское «Развитие жилищно-коммунального хозяйства» на 2019-2027 годы за 2025 год
B5: Наименование программы, подпрограммы, основного мероприятия, мероприятия, проекта | C5: Источники финансирования / Наименование целевого показателя | D5: Предусмотренный объем финансирования (тыс. руб.) / Значение целевого показателя
D6: Редакция программы от 25.02.2025 № 319-па (на начало отчетного периода) | E6: Редакция программы от 29.12.2025 № 2502-па (на конец отчетного периода)
B7: 1 | C7: 2 | D7: 3 | E7: 4
B8: Муниципальная программа города Усолье-Сибирское «Развитие жилищно-коммунального хозяйства» на 2019-2027 годы | C8: Всего | D8: =D9+D10+D11+D12 -> 471,124.92 | E8: =E9+E10+E11+E12 -> 437,265.65
C9: Бюджет города | D9: =D21+D33+D41+D82+D113+D138+D222 -> 200,951.30 | E9: =E21+E33+E41+E82+E113+E138+E222 -> 186,567.56
C10: Областной бюджет | D10: =D42+D83+D139+D223 -> 270,173.62 | E10: =E42+E83+E139+E223 -> 240,202.10
C11: Федеральный бюджет | D11: =D140 -> 0.00 | E11: =E140 -> 9,500.00
C12: Целевые средства | D12: =D43+D141 -> 0.00 | E12: =E43+E141 -> 996.00
C13: Целевой показатель 1. Доля многоквартирных домов, в которых проведен капитальный ремонт общего имущества, от общего числа многоквартирных домов на территории города, требуемых капитального ремонта (%) | D13: 3.05 | E13: 6.81
C14: Целевой показатель 2. Общая площадь помещений многоквартирных домов муниципального жилищного фонда, в которых проведен капитальный и текущий ремонт (м2) | D14: 733.80 | E14: 540.90
C15: Целевой показатель 3. Доля протяженности дорог местного значения, не отвечающих нормативным требованиям, в общей протяженности дорог местного значения (%) | D15: 88.98 | E15: 90.72
C16: Целевой показатель 4. Протяженность содержания линий наружного освещения территории города (км) | D16: 61.876 | E16: 82.576
C17: Целевой показатель 5. Объем потребления энергоресурсов муниципальными бюджетными учреждениями (т.у.т (тонн условного топлива)) | D17: 3.612 | E17: 3.612
C18: Целевой показатель 6. Доля исполненных мероприятий по благоустройству территории города (%) | D18: 100 | E18: 100
C19: Целевой показатель 8. Доля исполненных мероприятий по модернизации объектов водоснабжения, водоотведения и очистки сточных вод на территории города Усолье-Сибипрское (%) | D19: 0 | E19: 0
B20: Подпрограмма № 1 «Капитальный ремонт общего имущества в многоквартирных домах, расположенных на территории города Усолье-Сибирское» на 2019-2027 годы | C20: Всего | D20: =D21 -> 5,740.29 | E20: =E21 -> 6,727.19
C21: Бюджет города | D21: =D25+D29 -> 5,740.29 | E21: =E25+E29 -> 6,727.19
C22: Целевой показатель 1. Количество многоквартирных домов, в которых проведен капитальный ремонт общего имущества (объект) | D22: 19 | E22: 22
C23: Целевой показатель 2. Общая площадь многоквартирных домов, в которых проведен капитальный ремонт общего имущества (м2) | D23: 45,625.16 | E23: 77,011.73
B24: Основное мероприятие 1.1. Обеспечение мероприятий по капитальному ремонту многоквартирных домов города, включенных в Региональную программу капитального ремонта общего имущества в многоквартирных домах на территории Иркутской области на 2014-2043 годы. | C24: Всего | D24: =D25 -> 200.00 | E24: =E25 -> 200.00
C25: Бюджет города | D25: 200.00 | E25: 200.00
C26: Целевой показатель 1. Количество многоквартирных домов, в которых проведен капитальный ремонт общего имущества (объект) | D26: 19 | E26: 22
C27: Целевой показатель 2. Общая площадь многоквартирных домов, в которых проведен капитальный ремонт общего имущества (м2) | D27: 45,625.16 | E27: 77,011.73
B28: Основное мероприятие 1.2. Своевременная ежемесячная оплата взносов на капитальный ремонт многоквартирных домов в доле муниципальных жилых и нежилых помещений Региональному оператору. | C28: Всего | D28: =D29 -> 5,540.29 | E28: =E29 -> 6,527.19
C29: Бюджет города | D29: 5,540.29 | E29: 6,527.19
C30: Целевой показатель 1. Количество многоквартирных домов, в которых проведен капитальный ремонт общего имущества (объект) | D30: 19 | E30: 22
C31: Целевой показатель 2. Общая площадь многоквартирных домов, в которых проведен капитальный ремонт общего имущества (м2) | D31: 45,625.16 | E31: 77,011.73
B32: Подпрограмма № 2 «Капитальный и текущий ремонт муниципального жилищного фонда города Усолье – Сибирское» на 2019-2027 годы | C32: Всего | D32: =D33 -> 6,827.86 | E32: =E33 -> 5,733.06
C33: Бюджет города | D33: =D37 -> 6,827.86 | E33: =E37 -> 5,733.06
C34: Целевой показатель 1. Количество муниципальных жилых помещений, в которых проведен капитальный и текущий ремонт (шт) | D34: 27 | E34: 15
C35: Целевой показатель 2. Общая площадь помещений многоквартирных домов муниципального жилищного фонда, в которых проведен капитальный и текущий ремонт (м2) | D35: 733.80 | E35: 540.90
B36: Основное мероприятие 2.1. Капитальный и текущий ремонт помещений муниципального жилищного фонда. | C36: Всего | D36: =D37 -> 6,827.86 | E36: =E37 -> 5,733.06
C37: Бюджет города | D37: 6,827.86 | E37: 5,733.06
C38: Целевой показатель 1. Количество муниципальных жилых помещений, в которых проведен капитальный и текущий ремонт (шт) | D38: 27 | E38: 15
C39: Целевой показатель 2. Общая площадь помещений многоквартирных домов муниципального жилищного фонда, в которых проведен капитальный и текущий ремонт (м2) | D39: 733.80 | E39: 540.90
B40: Подпрограмма 3 «Развитие дорожного хозяйства города Усолье-Сибирское» на 2019-2027 годы | C40: Всего | D40: =D41+D42 -> 390,121.22 | E40: =E41+E42+E43 -> 349,319.59
C41: Бюджет города | D41: =D50+D53+D56+D59+D67+D70+D73+D78 -> 138,121.22 | E41: =E50+E53+E56+E59+E67+E70+E73+E78 -> 124,381.61
C42: Областной бюджет | D42: =D60+D74+D79 -> 252,000.00 | E42: =E60+E74+E79 -> 224,437.97
C43: Целевые средства | D43: 0.00 | E43: =E75 -> 500.00
C44: Целевой показатель 1. Протяженность содержания дорог местного значения (км) | D44: 80 | E44: 97
C45: Целевой показатель 7. Протяженность отремонтированных автомобильных дорог общего пользования местного значения (км) | D45: 2.7 | E45: 2.7
C46: Целевой показатель 8. Количество заключенных муниципальных контрактов на проведение экспертиз (государственных/негосударственных) (ед.) | D46: 0 | E46: 1
C47: Целевой показатель 9. Количество разработанных проектов ремонта, капитального ремонта, реконструкции автомобильных дорог (ед) | D47: 4 | E47: 0
C48: Целевой показатель 14. Количество участков автомобильных дорог, на которых выполнено восстановление и прокладка ливневой канализации (ед.) | D48: 0 | E48: 1
B49: Основное мероприятие 3.1. Содержание и ремонт дорог местного значения. | C49: Всего | D49: =D50 -> 91,225.91 | E49: =E50 -> 96,772.00
C50: Бюджет города | D50: 91,225.91 | E50: 96,772.00
C51: Целевой показатель 1. Протяженность содержания дорог местного значения (км) | D51: 80 | E51: 97
B52: Основное мероприятие 3.5. Проведение экспертизы (государственной/негосударственной). | C52: Всего | D52: =D53 -> 0.00 | E52: =E53 -> 393.66
C53: Бюджет города | D53: 0.00 | E53: 393.66
C54: Целевой показатель 8. Количество заключенных муниципальных контрактов на проведение экспертиз (государственных/негосударственных) (ед.) | D54: 0 | E54: 1
B55: Основное мероприятие 3.6. Проектирование ремонта, капитального ремонта, реконструкции автомобильных дорог | C55: Всего | D55: =D56 -> 9,324.43 | E55: =E56 -> 0.00
C56: Бюджет города | D56: 9,324.43 | E56: 0.00
C57: Целевой показатель 9. Количество разработанных проектов ремонта, капитального ремонта, реконструкции автомобильных дорог (ед) | D57: 4 | E57: 0
B58: Основное мероприятие 3.9. "Мероприятия в рамках реализации регионального проекта "Дорожная сеть" | C58: Всего | D58: =D59+D60 -> 280,898.88 | E58: =E59+E60 -> 0.00
C59: Бюджет города | D59: 30,898.88 | E59: 0.00
C60: Областной бюджет | D60: 250,000.00 | E60: 0.00
C61: Целевой показатель 7. Протяженность отремонтированных автомобильных дорог общего пользования местного значения (км) | D61: 2.7 | E61: 2.7
B62: 3.9.1 "Ремонт автомобильных дорог в рамках реализации национального проекта "Безопасные качественные дороги" | C62: Всего | D62: =D63+D64 -> 280,898.88 | E62: =E63+E64 -> 0.00
C63: Бюджет города | D63: 30,898.88 | E63: 0.00
C64: Областной бюджет | D64: 250,000.00 | E64: 0.00
C65: Значение целевого показателя относится к основному мероприятию 3.9. Протяженность отремонтированных автомобильных дорог общего пользования местного значения (км) | D65: * | E65: *
B66: Основное мероприятие 3.10. Проектирование строительства автомобильных дорог | C66: Всего | D66: =D67 -> 6,172.00 | E66: =E67 -> 0.00
C67: Бюджет города | D67: 6,172.00 | E67: 0.00
C68: Целевой показатель 12. Количество разработанных проектов строительства автомобильных дорог (ед.) | D68: 0 | E68: 0
B69: Основное мероприятие 3.12. Восстановление, прокладка и содержание ливневой канализации | C69: Всего | D69: =D70 -> 0.00 | E69: =E70 -> 1,045.00
C70: Бюджет города | D70: 0.00 | E70: 1,045.00
C71: Целевой показатель 14. Количество участков автомобильных дорог, на которых выполнено восстановление и прокладка ливневой канализации (ед.) | D71: 0 | E71: 1
B72: Основное мероприятие 3.13. Восстановление, прокладка и содержание ливневой канализации | C72: Всего | D72: =D73+D74+D75 -> 2,500.00 | E72: =E73+E74+E75 -> 2,479.87
C73: Бюджет города | D73: 500.00 | E73: 0.00
C74: Областной бюджет | D74: 2,000.00 | E74: 1,979.87
C75: Целевые средства | D75: 0.00 | E75: 500.00
C76: Значение целевого показателя относится к основному мероприятию 3.9. Протяженность отремонтированных автомобильных дорог общего пользования местного значения (км) | D76: * | E76: *
B77: Основное мероприятие 3.14. «Развитие и приведение в нормативное состояние автомобильных дорог общего пользования местного значения, включающих искусственные дорожные сооружения, в рамках национального проекта «Инфраструктура для жизни» | C77: Всего | D77: =D78+D79 -> 0.00 | E77: =E78+E79 -> 248,629.06
C78: Бюджет города | D78: 0.00 | E78: 26,170.96
C79: Областной бюджет | D79: 0.00 | E79: 222,458.10
C80: Значение целевого показателя относится к основному мероприятию 3.9. Протяженность отремонтированных автомобильных дорог общего пользования местного значения (км) | D80: * | E80: *
B81: Подпрограмма № 4 «Организация освещения улиц на территории города Усолье-Сибирское» на 2019-2027 годы | C81: Всего | D81: =D82+D83 -> 33,015.33 | E81: =E82+E83 -> 33,332.33
C82: Бюджет города | D82: =D88+D100+D103+D106+D109 -> 31,328.19 | E82: =E88+E100+E103+E106+E109 -> 32,149.06
C83: Областной бюджет | D83: =D110 -> 1,687.14 | E83: =E110 -> 1,183.28
C84: Целевой показатель 1. Протяженность линий наружного освещения территории города (км) | D84: 61.876 | E84: =E89 -> 82.576
C85: Целевой показатель 2. Количество разработанных технических заключений (ед) | D85: 1 | E85: 0
C86: Целевой показатель 3. Количество проведенных инвентаризаций объектов наружного освещения (ед) | D86: 1 | E86: 0
B87: Основное мероприятие 4.1. Содержание наружного освещения города Усолье – Сибирское | C87: Всего | D87: =D88 -> 27,705.83 | E87: =E88 -> 31,832.74
C88: Бюджет города | D88: =D91+D94+D97 -> 27,705.83 | E88: =E91+E94+E97 -> 31,832.74
C89: Целевой показатель 1. Протяженность линий наружного освещения территории города (км) | D89: 61.876 | E89: 82.576
B90: Основное мероприятие 4.1.1. Расчет за потребленную электроэнергию | C90: Всего | D90: =D91 -> 10,471.60 | E90: =E91 -> 14,766.21
C91: Бюджет города | D91: 10,471.60 | E91: 14,766.21
C92: Значение целевого показателя относится к основному мероприятию 4.1. Содержание наружного освещения города Усолье – Сибирское | D92: * | E92: *
B93: Основное мероприятие 4.1.2. Обслуживание наружного освещения города Усолье-Сибирское | C93: Всего | D93: =D94 -> 12,237.21 | E93: =E94 -> 16,239.17
C94: Бюджет города | D94: 12,237.21 | E94: 16,239.17
C95: Значение целевого показателя относится к основному мероприятию 4.1. Содержание наружного освещения города Усолье – Сибирское | D95: * | E95: *
B96: Основное мероприятие 4.1.3. Восстановление и устройство наружного освещения города Усолье-Сибирское | C96: Всего | D96: =D97 -> 4,997.01 | E96: =E97 -> 827.36
C97: Бюджет города | D97: 4,997.01 | E97: 827.36
C98: Значение целевого показателя относится к основному мероприятию 4.1. Содержание наружного освещения города Усолье – Сибирское | D98: * | E98: *
B99: Основное мероприятие 4.4. Организация уличного освещения | C99: Всего | D99: =D100 -> 250.00 | E99: =E100 -> 199.29
C100: Бюджет города | D100: 250.00 | E100: 199.29
C101: Значение целевого показателя относится к основному мероприятию 4.1. Содержание наружного освещения города Усолье – Сибирское | D101: * | E101: *
B102: Основное мероприятие 4.5. Разработка технического заключения | C102: Всего | D102: =D103 -> 111.09 | E102: =E103 -> 0.00
C103: Бюджет города | D103: 111.09 | E103: 0.00
C104: Целевой показатель 2. Количество разработанных технических заключений (ед) | D104: 1 | E104: 0
B105: Основное мероприятие 4.6. Инвентаризация объектов наружного освещения | C105: Всего | D105: =D106 -> 3,094.41 | E105: =E106 -> 0.00
C106: Бюджет города | D106: 3,094.41 | E106: 0.00
C107: Целевой показатель 3. Количество проведенных инвентаризаций объектов наружного освещения (ед) | D107: 1 | E107: 0
B108: Основное мероприятие 4.7 Организация уличного освещения (ул. Желябова; проход до ж/д перехода (ул. Ломоносова, ул. Тимирязева); от ул. Восточная до ул. Российская; ул. Уватова) | C108: Всего | D108: =D109+D110 -> 1,854.00 | E108: =E109+E110 -> 1,300.30
C109: Бюджет города | D109: 166.86 | E109: 117.03
C110: Областной бюджет | D110: 1,687.14 | E110: 1,183.28
C111: Значение целевого показателя относится к основному мероприятию 4.1. Содержание наружного освещения города Усолье – Сибирское | D111: * | E111: *
B112: Подпрограмма № 5 «Энергосбережение и повышение энергетической эффективности города Усолье-Сибирское» на 2019-2027 годы | C112: Всего | D112: =D113 -> 240.80 | E112: =E113 -> 257.97
C113: Бюджет города | D113: =D122+D130+D133 -> 240.80 | E113: =E122+E130+E133 -> 257.97
C114: Целевой показатель 1. Доля объемов электроэнергии, расчеты за которую осуществляются с использованием приборов учета (индивидуальных и общедомовых), в общем объеме электроэнергии, потребляемой многоквартирными домами в доле муниципальных жилых помещений, муниципального жилого фонда и муниципального специализированного фонда (%) | D114: 100 | E114: 100
C115: Целевой показатель 2. Доля объемов тепловой энергии, расчеты за которую осуществляются с использованием приборов учета (индивидуальных и обще-домовых), в общем объеме тепловой энергии, потребляемой многоквартирными домами в доле муниципальных жилых помещений, муниципального жилого фонда и муниципального специализированного фонда (%) | D115: 100 | E115: 100
C116: Целевой показатель 3. Доля объемов воды, расчеты за которую осуществляются с использованием приборов учета (индивидуальных и общедомовых), в общем объеме воды, потребляемой многоквартирными домами в доле муниципальных жилых помещений, муниципального жилого фонда и муниципального специализированного фонда (%) | D116: 100 | E116: 100
C117: Целевой показатель 4. Экономия потребления муниципальными бюджетными учреждениями электроэнергии в натуральном выражении (тыс. кВт) | D117: 16,300 | E117: 16,300
C118: Целевой показатель 5. Экономия потребления муниципальными бюджетными учреждениями тепловой энергии в натуральном выражении (Гкал) | D118: 190 | E118: 190
C119: Целевой показатель 6. Экономия потребления муниципальными бюджетными учреждениями питьевой воды в натуральном выражении (м³) | D119: 400 | E119: 400
C120: Целевой показатель 7. Количество актуализированных и разработанных схем теплоснабжения, водоснабжения, водоотведения и ливневой канализации города Усолье-Сибирское (шт.) | D120: 0 | E120: 1
B121: Основное мероприятие 5.1. Установка общедомовых приборов учета энергоресурсов в городе Усолье-Сибирское и установка индивидуальных квартирных приборов учета в муниципальном жилищном фонде. | C121: Всего | D121: =D122 -> 40.80 | E121: =E122 -> 57.97
C122: Бюджет города | D122: =D127 -> 40.80 | E122: =E127 -> 57.97
C123: Целевой показатель 1. Доля объемов электроэнергии, расчеты за которую осуществляются с использованием приборов учета (индивидуальных и общедомовых), в общем объеме электроэнергии, потребляемой многоквартирными домами в доле муниципальных жилых помещений, муниципального жилого фонда и муниципального специализированного фонда (%) | D123: 100 | E123: 100
C124: Целевой показатель 2. Доля объемов тепловой энергии, расчеты за которую осуществляются с использованием приборов учета (индивидуальных и обще-домовых), в общем объеме тепловой энергии, потребляемой многоквартирными домами в доле муниципальных жилых помещений, муниципального жилого фонда и муниципального специализированного фонда (%) | D124: 100 | E124: 100
C125: Целевой показатель 3. Доля объемов воды, расчеты за которую осуществляются с использованием приборов учета (индивидуальных и общедомовых), в общем объеме воды, потребляемой многоквартирными домами в доле муниципальных жилых помещений, муниципального жилого фонда и муниципального специализированного фонда (%) | D125: 100 | E125: 100
B126: Основное мероприятие 5.1.2. Установка индивидуальных квартирных приборов учета энергоресурсов в муниципальном жилищном фонде города Усолье-Сибирское | C126: Всего | D126: =D127 -> 40.80 | E126: =E127 -> 57.97
C127: Бюджет города | D127: 40.80 | E127: 57.97
C128: Значение целевого показателя относится к основному мероприятию 5.1. Установка общедомовых приборов учета энергоресурсов в городе Усолье-Сибирское и установка индивидуальных квартирных приборов учета в муниципальном жилищном фонде. | D128: * | E128: *
B129: Основное мероприятие 5.2. Актуализация и разработка схем теплоснабжения, водоснабжения, водоотведения и ливневой канализации города Усолье-Сибирское. | C129: Всего | D129: =D130 -> 0.00 | E129: =E130 -> 0.00
C130: Бюджет города | D130: 0.00 | E130: 0.00
C131: Целевой показатель 7. Количество актуализированных и разработанных схем теплоснабжения, водоснабжения, водоотведения и ливневой канализации города Усолье-Сибирское (шт.) | D131: 0 | E131: 1
B132: Основное мероприятие 5.3. Проведение технических мероприятий в бюджетной сфере города Усолье-Сибирское по реконструкции и капитальному ремонту ограждающих конструкций, оконных и дверных проемов, систем теплоснабжения, энергоснабжения, водоснабжения и водоотведения. | C132: Всего | D132: =D133 -> 200.00 | E132: =E133 -> 200.00
C133: Бюджет города | D133: 200.00 | E133: 200.00
C134: Целевой показатель 4. Экономия потребления муниципальными бюджетными учреждениями электроэнергии в натуральном выражении (тыс. кВт) | D134: 16,300 | E134: 16,300
C135: Целевой показатель 5. Экономия потребления муниципальными бюджетными учреждениями тепловой энергии в натуральном выражении (Гкал) | D135: 190 | E135: 190
C136: Целевой показатель 6. Экономия потребления муниципальными бюджетными учреждениями питьевой воды в натуральном выражении (м³) | D136: 400 | E136: 400
B137: Подпрограмма № 6 «Благоустройство территории города Усолье-Сибирское» на 2019-2027 годы | C137: Всего | D137: =D138+D139+D140 -> 26,749.66 | E137: =E138+E139+E140+E141 -> 41,895.52
C138: Бюджет города | D138: =D153+D159+D163+D166+D169+D182+D187+D192+D197+D201+D205+D209+D213+D217 -> 10,263.18 | E138: =E153+E159+E163+E166+E169+E182+E187+E192+E197+E201+E205+E209+E213+E217 -> 17,318.67
C139: Областной бюджет | D139: =D183+D188+D193+D198+D202+D206+D210+D214+D218 -> 16,486.48 | E139: =E183+E188+E193+E198+E202+E206+E210+E214+E218 -> 14,580.85
C140: Федеральный бюджет | D140: =D219 -> 0.00 | E140: =E219 -> 9,500.00
C141: Целевые средства | D141: 0.00 | E141: =E184+E189+E194 -> 496.00
C142: Целевой показатель 2. Содержание городского мемориала памяти и памятников в городе Усолье-Сибирское (ед.) | D142: 1 | E142: 1
C143: Целевой показатель 4. Площадь обустроенных пешеходных дорожек (м2) | D143: 512 | E143: 1113
C144: Целевой показатель 5. Доля отремонтированного детского игрового и спортивного оборудования, и иных малых архитектурных форм от выявленного количества (объема) необходимых для ремонта детского игрового и спортивного оборудования, и иных малых архитектурных форм (%) | D144: 100 | E144: 100
C145: Целевой показатель 6. Количество проведенных экспертиз (государственных/негосударственных) (ед.) | D145: 0 | E145: 1
C146: Целевой показатель 13. Доля общественных территорий (парков, скверов и т.д.), содержание которых выполнено, от выявленного количества (объема) необходимых для содержания общественных территорий (парков, скверов и т.д.) (%) | D146: 100 | E146: 100
C147: Целевой показатель 21. Количество инициативных проектов, реализованных на территории муниципального образования "город Усолье-Сибирское" (ед.) | D147: 3 | E147: 3
C148: Целевой показатель 39. Количество обустроенных футбольных полей (ед.) | D148: 1 | E148: 1
C149: Целевой показатель 42. Количество благоустроенных территорий (ед.) | D149: 1 | E149: 1
C150: Целевой показатель 43. Количество приобретенных и(или) установленныз стел, памятников, объектов архитектуры (ед.) | D150: 1 | E150: 1
C151: Целевой показатель 44. Количество мероприятий проекта "Концепция туристического центра города Усолье-Сибирское" (ед.) | D151: - | E151: 13
B152: Основное мероприятие 6.2 Содержание городского мемориала памяти и памятников в городе Усолье-Сибирское | C152: Всего | D152: =D153 -> 1,897.32 | E152: =E153 -> 1,523.31
C153: Бюджет города | D153: =D156 -> 1,897.32 | E153: =E156 -> 1,523.31
C154: Целевой показатель 2. Содержание городского мемориала памяти и памятников в городе Усолье-Сибирское (ед.) | D154: 1 | E154: 1
B155: Основное мероприятие 6.2.1. Техническое обслуживание газового оборудования и поставка газа. | C155: Всего | D155: =D156 -> 1,897.32 | E155: =E156 -> 1,523.31
C156: Бюджет города | D156: 1,897.32 | E156: 1,523.31
C157: Значение целевого показателя относится к основному мероприятию 6.2. Содержание городского мемориала памяти и памятников в городе Усолье-Сибирское | D157: * | E157: *
B158: Основное мероприятие 6.4 Обустройство пешеходных дорожек | C158: Всего | D158: =D159+D160 -> 0.00 | E158: =E159+E160 -> 0.00
C159: Бюджет города | D159: 0.00 | E159: 0.00
C160: Областной бюджет | D160: 0.00 | E160: 0.00
C161: Целевой показатель 4. Площадь обустроенных пешеходных дорожек (м2) | D161: 512 | E161: 1113
B162: Основное мероприятие 6.5. Содержание и ремонт детского игрового и спортивного оборудования и иных малых архитектурных форм | C162: Всего | D162: =D163 -> 911.22 | E162: 1,143.36
C163: Бюджет города | D163: 911.22 | E163: 1,143.36
C164: Целевой показатель 5. Доля отремонтированного детского игрового и спортивного оборудования, и иных малых архитектурных форм от выявленного количества (объема) необходимых для ремонта детского игрового и спортивного оборудования, и иных малых архитектурных форм (%) | D164: 100 | E164: 100
B165: Основное мероприятие 6.6. Проведение экспертизы (государственной/негосударственной) | C165: Всего | D165: =D166 -> 0.00 | E165: 76.80
C166: Бюджет города | D166: 0.00 | E166: 76.80
C167: Целевой показатель 6. Количество проведенных экспертиз (государственных/негосударственных) (ед.) | D167: 0 | E167: 1
B168: Основное мероприятие 6.18. Содержание общественных территорий (парки, скверы и т.д.) | C168: Всего | D168: =D169 -> 5,769.60 | E168: =E169 -> 12,600.49
C169: Бюджет города | D169: =D172+D175 -> 5,769.60 | E169: =E172+E175 -> 12,600.49
C170: Целевой показатель 13. Доля общественных территорий (парков, скверов и т.д.), содержание которых выполнено, от выявленного количества (объема) необходимых для содержания общественных территорий (парков, скверов и т.д.) (%) | D170: 100 | E170: 100
B171: Основное мероприятие 6.18.1. Содержание общественных территорий (зимнее/летнее) | C171: Всего | D171: =D172 -> 5,271.70 | E171: =E172 -> 11,314.49
C172: Бюджет города | D172: 5,271.70 | E172: 11,314.49
C173: Значение целевого показателя относится к основному мероприятию 6.18. Содержание общественных территорий (парки, скверы и т.д.) | D173: * | E173: *
B174: Основное мероприятие 6.18.2. Установка и техническое обслуживание систем видеонаблюдения | C174: Всего | D174: =D175 -> 497.90 | E174: =E175 -> 1,286.00
C175: Бюджет города | D175: 497.90 | E175: 1,286.00
C176: Значение целевого показателя относится к основному мероприятию 6.18. Содержание общественных территорий (парки, скверы и т.д.) | D176: * | E176: *
B177: Основное мероприятие 6.21. «Благоустройство территории в районе многоквартирных жилых домов №№ 58, 60 по пр-кту Ленинский г. Усолье-Сибирское» | C177: Всего | D177: =D178+D179 -> 0.00 | E177: =E178+E179 -> 0.00
C178: Бюджет города | D178: 0.00 | E178: 0.00
C179: Областной бюджет | D179: 0.00 | E179: 0.00
C180: Целевой показатель 21. Количество инициативных проектов, реализованных на территории муниципального образования "город Усолье-Сибирское" (ед.) | D180: 3 | E180: 3
B181: Основное мероприятие 6.36. «Благоустройство территории в районе многоквартирных жилых домов №№ 58, 60 по пр-кту Ленинский г. Усолье-Сибирское» | C181: Всего | D181: =D182+D183 -> 1,760.00 | E181: =E182+E183+E184 -> 1,672.67
C182: Бюджет города | D182: 176.00 | E182: 0.00
C183: Областной бюджет | D183: 1,584.00 | E183: 1,496.67
C184: Целевые средства | D184: 0.00 | E184: 176.00
C185: Значение целевого показателя относится к основному мероприятию 6.21. Реализация инициативных проектов на территории муниципального образования "город Усолье-Сибирское" | D185: * | E185: *
B186: Основное мероприятие 6.37. «Благоустройство дворовой территории жилых домов № 35, 29, 32, 34 по пр-кту Химиков» | C186: Всего | D186: =D187+D188 -> 1,200.00 | E186: =E187+E188+E189 -> 1,200.00
C187: Бюджет города | D187: 120.00 | E187: 0.00
C188: Областной бюджет | D188: 1,080.00 | E188: 1,080.00
C189: Целевые средства | D189: 0.00 | E189: 120.00
C190: Значение целевого показателя относится к основному мероприятию 6.21. Реализация инициативных проектов на территории муниципального образования "город Усолье-Сибирское" | D190: * | E190: *
B191: Основное мероприятие 6.38. «Благоустройство территории в районе ж/д перехода на перекрестке ул. Буйволовой и ул. Жуковского» | C191: Всего | D191: =D192+D193 -> 2,000.00 | E191: =E192+E193+E194 -> 1,904.31
C192: Бюджет города | D192: 200.00 | E192: 0.00
C193: Областной бюджет | D193: 1,800.00 | E193: 1,704.31
C194: Целевые средства | D194: 0.00 | E194: 200.00
C195: Значение целевого показателя относится к основному мероприятию 6.21. Реализация инициативных проектов на территории муниципального образования "город Усолье-Сибирское" | D195: * | E195: *
B196: Основное мероприятие 6.39 Обустройство футбольного поля по ул. Толбухина, 5 | C196: Всего | D196: =D197+D198 -> 1,500.00 | E196: =E197+E198 -> 1,300.52
C197: Бюджет города | D197: 135.00 | E197: 117.05
C198: Областной бюджет | D198: 1,365.00 | E198: 1,183.47
C199: Целевой показатель 39. Количество обустроенных футбольных полей (ед.) | D199: 1 | E199: 1
B200: Основное мероприятие 6.40 Устройство пешеходной дорожки вдоль дома № 76 по ул. Молотовая и дома № 89 по ул. Интернациональная | C200: Всего | D200: =D201+D202 -> 1,500.00 | E200: =E201+E202 -> 1,038.01
C201: Бюджет города | D201: 135.00 | E201: 93.42
C202: Областной бюджет | D202: 1,365.00 | E202: 944.59
... 40 more rows
